Cogmind - Beta 13 @@@ ROGUE MODE // 2024.04.07 @ 21:08:53 Player: Copyrite Result: Destroyed by S-10 Pest with Light Assault Rifle Performance ------------- Evolutions (0) 0 Regions Visited (2) 400 Robots Destroyed (27) 135 Value Destroyed (575) 575 Prototype IDs (2) 40 Alien Tech Used (0) 0 Bonus (0) 0 TOTAL SCORE: 1150 Bonus ------- None Cogmind --------- Core Integrity 0/250 Matter 143/300 Energy 99/100 System Corruption 0% Temperature Cool (0) Movement Core (100) Ox1 Location -10/Subcaves Parts ------- > --- POWER (1) -------- (None) > --- PROPULSION (2) --- (None) > --- UTILITY (2) ------ Small Storage Unit Structural Scanner > --- WEAPON (2) ------- (None) > --- INVENTORY (8) ---- Ion Engine Improved Terrain Scanner Light Armor Plating Light Armor Plating Grenade Launcher Mining Laser Multitool Flamer Peak State ------------ > --- POWER ------------ Ion Engine > --- PROPULSION ------- Light Treads Light Treads > --- UTILITY ---------- Small Storage Unit Improved Terrain Scanner > --- WEAPON ----------- Assault Rifle Light Assault Rifle > --- INVENTORY -------- Light Ion Engine Aluminum Leg Aluminum Leg Light Assault Rifle Mining Laser [Rating: 9] Favorites ----------- Power Ion Engine Engine Ion Engine Propulsion Light Treads Treads Light Treads Utility Small Storage Unit Device Structural Scanner Storage Small Storage Unit Weapon Assault Rifle Ballistic Gun Assault Rifle Launcher Grenade Launcher Special Weapon Mining Laser Impact Weapon Hammer Build | -11 -10 -10 ------- Run | Yrd Mat Sub Slots Evolved . | . . . Power . | . . . Propulsion . | . . . Utility . | . . . Weapon . | . . . Parts Attached 21 | 8 7 6 Power 4 | 2 1 1 Engine 4 | 2 1 1 Core . | . . . Reactor . | . . . Propulsion 2 | 2 . . Treads 2 | 2 . . Leg . | . . . Wheel . | . . . Hover . | . . . Flight . | . . . Utility 3 | 2 1 . Device 2 | 1 1 . Storage 1 | 1 . . Processor . | . . . Hackware . | . . . Protection . | . . . Artifact . | . . . Weapon 12 | 2 5 5 Energy Gun . | . . . Energy Cannon . | . . . Ballistic Gun 8 | 2 3 3 Ballistic Cannon . | . . . Launcher 1 | . . 1 Special Weapon 2 | . 2 . Impact Weapon 1 | . . 1 Slashing Weapon . | . . . Piercing Weapon . | . . . Special Melee Weapon . | . . . Unidentified Prototypes . | . . . Parts Lost 5 | . . 5 Power 1 | . . 1 Propulsion 2 | . . 2 Utility . | . . . Weapon 2 | . . 2 Highest Loss Streak 2 | . . 2 To Critical Strikes . | . . . Average Slot Usage (%) 94 | . 100 79 Engine 13 | . 14 12 Treads 23 | . 28 11 Device 14 | . 14 14 Storage 14 | . 14 14 Ballistic Gun 19 | . 26 2 Launcher 3 | . . 11 Special Weapon 1 | . 1 . Impact Weapon 3 | . . 12 Naked Turns . | . . . Heaviest Build 16 | 14 15 16 Greatest Support 40 | 40 40 40 Greatest Overweight (x) 5 | . . 5 Average Overweight (x) . | . . 2 Largest Inventory Capacity 8 | 8 8 8 Average Capacity 7 | 7 8 8 Most Carried 8 | 5 8 8 Average Carried 6 | 3 6 7 Final Capacity 8 | 8 8 8 Final Carried 8 | 5 8 8 Class Distribution -------------------- 100% | Mutant Dominant Class ---------------- Mutant | -10/Materials Mutant | -10/Subcaves Resources | -11 -10 -10 ----------- Run | Yrd Mat Sub Matter Collected 568 | 304 156 108 Remotely . | . . . Salvage Created 606 | 121 269 216 Parts 55 | 7 32 16 Haulers Intercepted . | . . . Recyclers Shooed 2 | 2 . . Parts Field Recycled . | . . . Retrieved Matter . | . . . Parts Self-Destructed 6 | . . 6 Prevented . | . . . Kills | -11 -10 -10 ------- Run | Yrd Mat Sub Combat Hostiles Destroyed 21 | . 11 10 Melee 2 | . . 2 Guns 11 | . 11 . AOE 8 | . . 8 Classes Destroyed 7 | 2 4 1 Builder 2 | . 2 . Tunneler 2 | 2 . . Recycler 1 | 1 . . Operator 1 | . 1 . Swarmer 10 | . 9 1 Grunt 4 | . 2 2 Subdweller 7 | . . 7 Best Kill Streak 4 | 2 4 3 Combat Bots Only 3 | . 3 3 Max Kills in Single Turn 2 | 2 2 2 Gunslinging 1 | . 1 . Exploded 2 | . . 2 Melee 1 | . . 1 Uniques/NPCs Destroyed . | . . . Combat | -11 -10 -10 -------- Run | Yrd Mat Sub Hostile Shots Fired 113 | . 62 51 Missed 29 | . 17 12 Damage Taken 1026 | . 389 637 Core 254 | . 52 202 Absorbed by Shields . | . . . Core Remaining (%) 100 | 100 . . Volleys Fired 78 | 6 50 22 Largest 2 | 2 2 1 Hottest 100 | 40 100 30 Shots Fired 118 | 12 84 22 Gun 80 | 12 68 . Cannon . | . . . Launcher 22 | . . 22 Special 16 | . 16 . Kinetic 80 | 12 68 . Thermal 16 | . 16 . Explosive 22 | . . 22 Electromagnetic . | . . . Robot Hit Streak 9 | 3 9 6 Robot Miss Streak 6 | 2 6 . Penetration Max . | . . . Secondary Targets 3 | . 3 . Max Gunslinging Chain 1 | . 1 . Shots Hit Robots 58 | 7 34 17 Core Hits 40 | 4 18 18 Critical Kills 1 | . 1 . Critical Parts Destroyed 2 | . . 2 Critical Strikes 3 | . 1 2 Destroy 1 | . 1 . Smash 2 | . . 2 Melee Attacks 23 | . . 23 Impact 23 | . . 23 Slashing . | . . . Piercing . | . . . Sneak Attacks 2 | . . 2 Combat Hostiles . | . . . Follow-up Attacks . | . . . Damage Inflicted 1711 | 88 427 1196 Guns 515 | 88 427 . Cannons . | . . . Explosions 947 | . . 947 Melee 249 | . . 249 Ramming . | . . . Kinetic 515 | 88 427 . Thermal . | . . . Explosive 947 | . . 947 Electromagnetic . | . . . Impact 249 | . . 249 Slashing . | . . . Piercing . | . . . Highest Corruption . | . . . Average Corruption . | . . . Corruption Purged . | . . . Corruption Blocked . | . . . Overload Shots . | . . . Overflow Damage 54 | . . 54 Projectiles . | . . . Explosions . | . . . Melee 54 | . . 54 Knockbacks 3 | . . 3 Impact 3 | . . 3 Kinetic . | . . . Secondary . | . . . Self-Inflicted Damage . | . . . Shots . | . . . Rammed . | . . . Targets Rammed . | . . . Kicked . | . . . Crushed . | . . . Highest Temperature 120 | . 120 . Average Temperature 42 | . 42 . Received Heat Transfer 135 | . 66 69 Siege Activations . | . . . Robots Corrupted . | . . . Combat Hostiles . | . . . Parts Fried . | . . . Impact Corruptions 2 | . . 2 Robots Melted . | . . . Combat Hostiles . | . . . Parts Melted . | . . . Heat Transferred . | . . . Parts Sabotaged . | . . . Parts Stolen . | . . . Parts Stripped . | . . . Power Chain Reactions . | . . . Alert | -11 -10 -10 ------- Run | Yrd Mat Sub Peak Influence 260 | 15 260 . Initial 9 | . 9 . Average 61 | 5 69 . Maximum Alert Level 1 | . 1 . Low Security (%) 93 | 100 92 . Level 1 6 | . 7 . Level 2 . | . . . Level 3 . | . . . Level 4 . | . . . Level 5 . | . . . High Security . | . . . Max Security . | . . . Squads Dispatched 2 | . 2 . Investigation 1 | . 1 . Extermination . | . . . Reinforcement 1 | . 1 . Assault . | . . . Garrison . | . . . Intercept . | . . . Searches Triggered . | . . . Construction Impeded . | . . . Haulers Reinforced . | . . . Active Scanning Responses . | . . . Cargo Convoy Interrupts . | . . . Stealth | -11 -10 -10 --------- Run | Yrd Mat Sub Distress Signals 2 | . 2 . Communications Jammed . | . . . Distress Signals . | . . . Times Spotted 41 | . 28 13 Peak Tracking Total 6 | . 6 3 Tactical Retreats 2 | . 1 1 Traps | -11 -10 -10 ------- Run | Yrd Mat Sub Traps Triggered 1 | . 1 . Indirectly . | . . . Trap Hack Attempts . | . . . Triggered . | . . . Disarmed . | . . . Reprogrammed . | . . . Reused . | . . . Traps Extracted . | . . . Installed . | . . . Triggered . | . . . Machines | -11 -10 -10 ---------- Run | Yrd Mat Sub Machines Disabled . | . . . Max in Single Turn . | . . . Machines Repaired . | . . . Machines Dismantled . | . . . Machines Sabotaged . | . . . Overloaded Fab Kills . | . . . Hacking | -11 -10 -10 --------- Run | Yrd Mat Sub Machines Accessed 8 | . 8 . Terminals 7 | . 7 . Fabricators . | . . . Repair Stations . | . . . Recycling Units 1 | . 1 . Scanalyzers . | . . . Garrison Access . | . . . Total Hacks 30 | . 30 . Successful 19 | . 19 . Failed 11 | . 11 . Catastrophic 2 | . 2 . Database Lockouts . | . . . Manual 16 | . 16 . Terminals 24 | . 24 . Fabricators . | . . . Repair Stations . | . . . Recycling Units 6 | . 6 . Scanalyzers . | . . . Garrison Access . | . . . Terminal Hacks 10 | . 10 . Prototype ID Bank 1 | . 1 . Branch Access Points 1 | . 1 . Terminal Index 1 | . 1 . Alert Level 1 | . 1 . Unreport Threat 1 | . 1 . Locate Traps 1 | . 1 . Dispatch Records 2 | . 2 . Investigation Status 1 | . 1 . Recall Reinforcements 1 | . 1 . Fabricator Hacks . | . . . Repair Station Hacks . | . . . Recycling Unit Hacks 5 | . 5 . Recycle Component 2 | . 2 . Process 1 | . 1 . Retrieve Matter 1 | . 1 . Retrieve Components 1 | . 1 . Scanalyzer . | . . . Garrison Access Hacks . | . . . Unauthorized Hacks 4 | . 4 . Terminals 4 | . 4 . Botnet 4 | . 4 . Fabricators . | . . . Repair Stations . | . . . Recycling Units . | . . . Scanalyzers . | . . . Garrison Access . | . . . Data Cores Recovered . | . . . Used . | . . . Hacking Detections 5 | . 5 . Full Trace Events 2 | . 2 . Feedback Events . | . . . Feedback Blocked . | . . . Robot Schematics Acquired . | . . . Robots Built . | . . . Authchips . | . . . Time . | . . . Total Robot Build Rating . | . . . Part Schematics Acquired . | . . . Parts Built . | . . . Authchips . | . . . Time . | . . . Total Part Build Rating . | . . . Parts Repaired . | . . . Time . | . . . Parts Recycled 2 | . 2 . Recycled Matter 90 | . 90 . Retrieved Matter 90 | . 90 . Retrieved Components 2 | . 2 . Parts Scanalyzed . | . . . Part Schematics Acquired . | . . . Parts Damaged . | . . . Bothacking | -11 -10 -10 ------------ Run | Yrd Mat Sub Used RIF Installer . | . . . Robots Hacked . | . . . Non-combat . | . . . Combat . | . . . Robot Hacks Applied . | . . . Relay Couplers Released . | . . . Fabnet Peak Effective % . | . . . Robots Rewired . | . . . Allies Hacked . | . . . Hacks Repelled . | . . . Allies | -11 -10 -10 -------- Run | Yrd Mat Sub Total Allies . | . . . Largest Group . | . . . Highest-Rated Group . | . . . Highest-Rated Ally . | . . . Total Orders . | . . . Ally Attacks . | . . . Total Damage . | . . . Kills . | . . . Allies Corrupted . | . . . Allies Melted . | . . . Intel | -11 -10 -10 ------- Run | Yrd Mat Sub Robot Analysis Total . | . . . Derelict Logs Recovered . | . . . Drone Launches . | . . . Drone Recoveries . | . . . Exploration | -11 -10 -10 ------------- Run | Yrd Mat Sub Turns Passed 2158 | 206 1412 540 Spaces Moved 1039 | 112 725 202 Core 102 | 5 . 97 Treads 937 | 107 725 105 Legs . | . . . Wheels . | . . . Hover . | . . . Flight . | . . . Fastest Speed 50 | 50 160 150 Average Speed 168 | 155 160 208 Slowest Speed 300 | 160 160 300 Overloaded Moves . | . . . Propulsion Burnouts . | . . . Robots Hopped . | . . . Cave-ins Triggered . | . . . Exploration Rate (%) 40 | 8 91 21 Regions Visited 2 Branch Regions 1 Pre-discovered Areas 1 | . . 1 Known Exits Taken . | . . . Unknown Exits Taken 2 | 1 1 . Scrap Searched . | . . . Spaces Dug 5 | . 5 . Terrain Destroyed 97 | . 5 92 Melee . | . . . Projectile 5 | . 5 . AOE 92 | . . 92 Terrain Rammed . | . . . Walls Destroyed . | . . . Machines Disabled . | . . . Actions | -11 -10 -10 --------- Run | Yrd Mat Sub Total 1250 | 130 861 259 Wait 72 | . 71 1 Move 1037 | 111 724 202 Hop . | . . . Pick Up 13 | 5 6 2 Fast Attach 7 | 7 . . Attach 1 | . . 1 Detach 1 | . . 1 Swap 13 | 1 7 5 Drop 5 | . 3 2 Fire 78 | 6 50 22 Melee 23 | . . 23 Ram . | . . . Kick . | . . . Crush . | . . . Escape Stasis . | . . . Rewire . | . . . Trap . | . . . Miscellaneous . | . . . Route ------- -11/Scrapyard -10/Materials (discovered 4 exits: [*Mat x2] / *Min / [*Sub]) -10/Subcaves (discovered 1 exit: [Rec]) History --------- Turn | Location | Event 7 | -11/Scrapyard | Discovered new exit (range 13) 207 | -11/Scrapyard | Entered Materials 303 | -10/Materials | Build established: Mutant 594 | -10/Materials | Identified exit to Mines 871 | -10/Materials | Discovered new exit (range 16) 1090 | -10/Materials | Discovered new exit (range 15) 1601 | -10/Materials | Discovered new exit (range 5) 1619 | -10/Materials | Entered Subcaves 1619 | -10/Subcaves | Discovered new exit (range 15) 1678 | -10/Subcaves | Shifting Twisted Machinery released Flamer 1712 | -10/Subcaves | Shifting Twisted Machinery released Sub. Machine Gun 1828 | -10/Subcaves | Ambushed by Subdweller buried in earth 1889 | -10/Subcaves | Learned location of Zion (-7) 1889 | -10/Subcaves | Met a Zionite searching for "candidates" 1914 | -10/Subcaves | Shifting Twisted Machinery released Mak. Light Armor Plating 2017 | -10/Subcaves | Shifting Twisted Machinery released Sub. Machine Gun 2023 | -10/Subcaves | Shifting Twisted Machinery released Piercing Trap 2094 | -10/Subcaves | Core integrity fell below 50% 2105 | -10/Subcaves | Core integrity fell below 20% 2159 | -10/Subcaves | Destroyed by S-10 Pest with Light Assault Rifle Last Messages --------------- Piercing Trap falls loose from the Twisted Machinery. Sneak attack on M3-YZF(u). OJ-0V8(R): "ECOKILL!" Assault Rifle destroyed. OJ-0V8(R) suffers critical hit (Smash). Destroyed Sub. Power Source. OJ-0V8(R) system corrupted by crushing effect. OJ-0V8(R) knocked back. Ion Engine destroyed. OJ-0V8(R) destroyed. Acquired 28 matter. Subatomizers dissect the Sub. Monowheel. S-10 Pest destroyed. S-10 Pest suffers critical hit (Smash). Destroyed Flight Unit. S-10 Pest system corrupted by crushing effect. S-10 Pest knocked back. Lgt. Assault Rifle fries itself beyond repair. Hammer destroyed. Map ----- +----------------------------------------------------+ | ???????????????# ## ### #### ##????## | | ???????????????? ### ## #### ####????## | | ???????????????? ### ## ### #####???### | | ???????????????? #### ?#########??????## | | ???????????????? #### ???######???????### | | ???????????????? ??### ?? ???????????????### | | ??????????????? #??### ?? ##?????????????????? | | ???????????????#####???###??? ##?????????????????? | | ???????????????####